fUST/lending_fUST_20240117
["ID","MTS","AMOUNT","RATE_DAILY","PERIOD"]
[311912246,1705495845380,-1111.66,0.00022054,2]
[311912248,1705495845389,-500.0,0.00022054,2]
[311912250,1705495845398,-500.0,0.00022054,2]
[311912252,1705495845407,-500.0,0.00022054,2]
[311912255,1705495845417,-500.0,0.00022054,2]
[311912257,1705495845426,-375.08228626,0.00022054,2]
[311912259,1705495845435,-500.0,0.00022054,2]
[311912260,1705495845444,-500.0,0.00022054,2]
[311912262,1705495845454,-750.99,0.00022054,2]
[311912265,1705495845463,-500.0,0.00022054,2]
[311912267,1705495845472,-500.0,0.00022054,2]
[311912269,1705495845481,-199.39250185,0.00022054,2]
[311912270,1705495845490,-6221.94,0.00022054,2]
[311912273,1705495845499,-716.92,0.00022054,2]
[311912274,1705495845508,-1555.98,0.00022054,2]
[311912277,1705495845517,-310.82598698,0.00022054,2]
[311912326,1705495846840,-1006.17085076,0.00022053,2]
[311912328,1705495875790,156.63761755,0.00016435,2]
[311912676,1705497037865,-154.9690062,0.00018836,3]
[311912678,1705497037876,-154.9690062,0.00018837,2]
[311912680,1705497037886,-162.1731887,0.00018845,2]
[311912682,1705497037896,-186.490029,0.00018947,2]
[311912684,1705497037905,-653.18191057,0.00019196,2]
[311912687,1705497037922,-767.65915023,0.00019196,2]
[311912697,1705497038009,-604.48,0.00019939,3]
[311912699,1705497038019,-1991.85581733,0.00019947,2]
[311912701,1705497038029,-49253.77647277,0.00019948,2]
[311912704,1705497038048,-428.53871369,0.00019948,2]
[311912707,1705497038064,-8581.47271337,0.00019948,2]
[311912709,1705497038074,-20622.30577342,0.00019949,2]
[311912711,1705497038084,-151.13413448,0.00019953,2]
[311912713,1705497038093,-1265.41816541,0.0002,2]
[311912715,1705497038102,-50000.0,0.00020756,2]
[311912717,1705497038112,-50000.0,0.00020756,2]
[311912719,1705497038121,-50000.0,0.00020756,2]
[311912721,1705497038130,-50000.0,0.00020756,2]
[311912723,1705497038140,-50000.0,0.00020756,2]
[311912725,1705497038149,-1815.68321298,0.00021,2]
[311912727,1705497038158,-620.0077205,0.00021182,2]
[311912729,1705497038167,-190.558244,0.00021917,2]
[311912731,1705497038177,-190.558244,0.00021917,2]
[311912733,1705497038187,-280.299485,0.00021917,2]
[311912735,1705497038195,-280.299485,0.00021917,2]
[311912737,1705497038204,-500.0,0.00021917,2]
[311912739,1705497038214,-500.0,0.00021917,2]
[311912741,1705497038223,-500.0,0.00021917,2]
[311912742,1705497038232,-500.68015708,0.00021917,2]
[311912744,1705497038242,-500.0,0.00021917,2]
[311912745,1705497038252,-500.0,0.00021917,2]
[311912747,1705497038262,-500.0,0.00021917,2]
[311912749,1705497038271,-508.74722001,0.00021917,2]
[311912751,1705497038280,-426.88797914,0.00021917,2]
[311912753,1705497038290,-500.0,0.00021917,2]
[311912755,1705497038299,-1599.28,0.00021917,2]
[311912756,1705497038309,-500.0,0.00021917,2]
[311912758,1705497038318,-500.0,0.00021917,2]
[311912760,1705497038327,-500.0,0.00021917,2]
[311912761,1705497038336,-500.0,0.00021917,2]
[311912764,1705497038346,-500.0,0.00021917,2]
[311912765,1705497038357,-500.0,0.00021917,2]
[311912767,1705497038366,-314.44072528,0.00021917,2]
[311912770,1705497038377,-500.0,0.00021917,2]
[311912771,1705497038386,-500.80858493,0.00021917,2]
[311912774,1705497038396,-500.0,0.00021917,2]
[311912775,1705497038406,-752.38,0.00021917,2]
[311912778,1705497038415,-500.0,0.00021917,2]
[311912779,1705497038425,-500.0,0.00021917,2]
[311912781,1705497038434,-500.0,0.00021917,2]
[311912783,1705497038444,-500.0,0.00021917,2]
[311912785,1705497038453,-500.0,0.00021917,2]
[311912787,1705497038463,-500.0,0.00021917,2]
[311912789,1705497038472,-609.73,0.00021917,2]
[311912791,1705497038481,-500.0,0.00021917,2]
[311912793,1705497038490,-687.29,0.00021917,2]
[311912795,1705497038502,-500.0,0.00021917,2]
[311912797,1705497038514,-500.0,0.00021917,2]
[311912799,1705497038524,-357.88867272,0.00021917,2]
[311912801,1705497038534,-500.0,0.00021917,2]
[311912803,1705497038543,-500.0,0.00021917,2]
[311912805,1705497038553,-500.0,0.00021917,2]
[311912807,1705497038563,-500.0,0.00021917,2]
[311912809,1705497038572,-500.0,0.00021917,2]
[311912811,1705497038582,-500.0,0.00021917,2]
[311912813,1705497038607,-500.0,0.00021917,2]
[311912815,1705497038628,-500.0,0.00021917,2]
[311912817,1705497038637,-500.0,0.00021917,2]
[311912818,1705497038649,-500.0,0.00021917,2]
[311912820,1705497038660,-500.0,0.00021917,2]
[311912822,1705497038670,-500.0,0.00021917,2]
[311912824,1705497038682,-500.0,0.00021917,2]
[311912826,1705497038691,-500.0,0.00021917,2]
[311912829,1705497038708,-500.0,0.00021917,2]
[311912832,1705497038724,-503.79040743,0.00021917,2]
[311912834,1705497038741,-500.0,0.00021917,2]
[311912837,1705497038753,-500.0,0.00021917,2]
[311912839,1705497038769,-500.0,0.00021917,2]
[311912841,1705497038782,-500.0,0.00021917,2]
[311912844,1705497038798,-500.0,0.00021917,2]
[311912846,1705497038813,-500.0,0.00021917,2]
[311912849,1705497038827,-500.0,0.00021917,2]
[311912851,1705497038839,-500.0,0.00021917,2]
[311912853,1705497038854,-945.81,0.00021917,2]
[311912856,1705497038867,-500.0,0.00021917,2]
[311912858,1705497038880,-500.0,0.00021917,2]
[311912860,1705497038894,-508.23812159,0.00021917,2]
[311912863,1705497038906,-500.0,0.00021917,2]
[311912865,1705497038917,-500.0,0.00021917,2]
[311912868,1705497038933,-500.0,0.00021917,2]
[311912870,1705497038946,-500.0,0.00021917,2]
[311912872,1705497038961,-500.0,0.00021917,2]
[311912875,1705497038974,-500.0,0.00021917,2]
[311912877,1705497038988,-500.0,0.00021917,2]
[311912879,1705497039002,-500.0,0.00021917,2]
[311912882,1705497039018,-500.0,0.00021917,2]
[311912885,1705497039035,-500.0,0.00021917,2]
[311912887,1705497039048,-501.95209961,0.00021917,2]
[311912889,1705497039059,-500.0,0.00021917,2]
[311912891,1705497039070,-500.0,0.00021917,2]
[311912894,1705497039081,-500.0,0.00021917,2]
[311912896,1705497039093,-200.0,0.00021917,2]
[311912898,1705497039106,-500.0,0.00021917,2]
[311912901,1705497039119,-500.0,0.00021917,2]
[311912903,1705497039131,-493.1083161,0.00021917,2]
[311912905,1705497039142,-500.0,0.00021917,2]
[311912907,1705497039154,-500.90966369,0.00021917,2]
[311912910,1705497039166,-502.1951578,0.00021917,2]
[311912912,1705497039178,-2162.47,0.00021917,2]
[311912914,1705497039191,-455.57136527,0.00021917,2]
[311912916,1705497039204,-500.0,0.00021917,2]
[311912919,1705497039218,-500.0,0.00021917,2]
[311912922,1705497039229,-500.0,0.00021917,2]
[311912925,1705497039241,-532.97085441,0.00021917,2]
[311912928,1705497039253,-500.0,0.00021917,2]
[311912931,1705497039264,-500.0,0.00021917,2]
[311912936,1705497039275,-500.0,0.00021917,2]
[311912939,1705497039287,-500.0,0.00021917,2]
[311912942,1705497039299,-2845.35,0.00021917,2]
[311912945,1705497039310,-500.0,0.00021917,2]
[311912949,1705497039322,-500.0,0.00021917,2]
[311912952,1705497039334,-500.0,0.00021917,2]
[311912955,1705497039346,-522.0123093,0.00021917,2]
[311912956,1705497039358,-500.0,0.00021917,2]
[311912957,1705497039369,-500.0,0.00021917,2]
[311912960,1705497039381,-598.60148851,0.00021917,2]
[311912962,1705497039393,-500.0,0.00021917,2]
[311912963,1705497039404,-254.97616014,0.00021917,2]
[311912964,1705497039416,-500.0,0.00021917,2]
[311912965,1705497039429,-500.0,0.00021917,2]
[311912966,1705497039440,-500.0,0.00021917,2]
[311912967,1705497039451,-500.0,0.00021917,2]
[311912968,1705497039463,-500.0,0.00021917,2]
[311912969,1705497039475,-500.0,0.00021917,2]
[311912970,1705497039486,-500.0,0.00021917,2]
[311912971,1705497039499,-500.0,0.00021917,2]
[311912972,1705497039514,-500.0,0.00021917,2]
[311912973,1705497039526,-500.0,0.00021917,2]
[311912974,1705497039538,-500.0,0.00021917,2]
[311912975,1705497039551,-500.0,0.00021917,2]
[311912976,1705497039564,-644.08,0.00021917,2]
[311912977,1705497039675,-500.0,0.00021917,2]
[311912978,1705497039687,-500.0,0.00021917,2]
[311912979,1705497039696,-500.0,0.00021917,2]
[311912980,1705497039706,-500.0,0.00021917,2]
[311912981,1705497039716,-500.0,0.00021917,2]
[311912982,1705497039726,-819.16,0.00021917,2]
[311912983,1705497039739,-500.0,0.00021917,2]
[311912984,1705497039750,-500.0,0.00021917,2]
[311912985,1705497039760,-1196.79,0.00021917,2]
[311912986,1705497039771,-500.0,0.00021917,2]
[311912987,1705497039781,-500.0,0.00021917,2]
[311912988,1705497039791,-500.0,0.00021917,2]
[311912989,1705497039801,-500.0,0.00021917,2]
[311912990,1705497039811,-500.0,0.00021917,2]
[311912991,1705497039822,-500.0,0.00021917,2]
[311912992,1705497039831,-500.0,0.00021917,2]
[311912993,1705497039840,-500.0,0.00021917,2]
[311912994,1705497039851,-1282.61,0.00021917,2]
[311912995,1705497039861,-500.0,0.00021917,2]
[311912996,1705497039871,-500.0,0.00021917,2]
[311912997,1705497039882,-500.0,0.00021917,2]
[311912998,1705497039891,-500.0,0.00021917,2]
[311912999,1705497039900,-867.47,0.00021917,2]
[311913000,1705497039911,-502.96184779,0.00021917,2]
[311913001,1705497039920,-500.0,0.00021917,2]
[311913002,1705497039930,-500.0,0.00021917,2]
[311913003,1705497039940,-500.0,0.00021917,2]
[311913004,1705497039951,-512.31621446,0.00021917,2]
[311913005,1705497039960,-500.0,0.00021917,2]
[311913006,1705497039970,-500.0,0.00021917,2]
[311913007,1705497039979,-500.0,0.00021917,2]
[311913008,1705497039989,-500.0,0.00021917,2]
[311913009,1705497039999,-719.7,0.00021917,2]
[311913010,1705497040009,-500.0,0.00021917,2]
[311913011,1705497040019,-500.0,0.00021917,2]
[311913012,1705497040030,-500.0,0.00021917,2]
[311913013,1705497040040,-500.0,0.00021917,2]
[311913014,1705497040050,-500.0,0.00021917,2]
[311913015,1705497040059,-500.0,0.00021917,2]
[311913016,1705497040069,-824.44,0.00021917,2]
[311913017,1705497040079,-502.91683953,0.00021917,2]
[311913018,1705497040088,-500.0,0.00021917,2]
[311913019,1705497040098,-214.55184681,0.00021917,2]
[311913020,1705497040107,-501.21701358,0.00021917,2]
[311913021,1705497040116,-557.81864135,0.00021917,2]
[311913022,1705497040126,-6970.51,0.00021917,2]
[311913023,1705497040137,-500.0,0.00021917,2]
[311913024,1705497040147,-500.29488324,0.00021917,2]
[311913025,1705497040158,-434.48775725,0.00021917,2]
[311913026,1705497040168,-722.44,0.00021917,2]
[311913027,1705497040179,-500.0,0.00021917,2]
[311913028,1705497040190,-1291.92,0.00021917,2]
[311913029,1705497040201,-500.0,0.00021917,2]
[311913030,1705497040214,-500.0,0.00021917,2]
[311913031,1705497040223,-198.79879071,0.00021917,2]
[311913032,1705497040235,-500.0,0.00021917,2]
[311913033,1705497040245,-500.0,0.00021917,2]
[311913034,1705497040255,-551.84989273,0.00021917,2]
[311913035,1705497040268,-500.0,0.00021917,2]
[311913036,1705497040278,-828.08,0.00021917,2]
[311913037,1705497040289,-1645.58,0.00021917,2]
[311913038,1705497040303,-500.0,0.00021917,2]
[311913039,1705497040314,-500.0,0.00021917,2]
[311913040,1705497040323,-500.0,0.00021917,2]
[311913041,1705497040334,-500.0,0.00021917,2]
[311913042,1705497040346,-500.0,0.00021917,2]
[311913043,1705497040357,-640.87,0.00021917,2]
[311913044,1705497040368,-889.53,0.00021917,2]
[311913045,1705497040377,-500.0,0.00021917,2]
[311913046,1705497040388,-500.0,0.00021917,2]
[311913047,1705497040399,-500.0,0.00021917,2]
[311913048,1705497040410,-500.0,0.00021917,2]
[311913049,1705497040421,-500.0,0.00021917,2]
[311913050,1705497040435,-500.0,0.00021917,2]
[311913051,1705497040445,-1571.53,0.00021917,2]
[311913052,1705497040455,-500.0,0.00021917,2]
[311913053,1705497040465,-500.0,0.00021917,2]
[311913054,1705497040476,-1966.26,0.00021917,2]
[311913055,1705497040487,-500.0,0.00021917,2]
[311913056,1705497040497,-15234.92,0.00021917,2]
[311913057,1705497040509,-1318.96,0.00021917,2]
[311913058,1705497040520,-500.0,0.00021917,5]
[311913059,1705497040530,-2878.37,0.00021917,2]
[311913060,1705497040539,-500.0,0.00021917,2]
[311913061,1705497040549,-500.0,0.00021917,2]
[311913062,1705497040559,-500.0,0.00021917,2]
[311913063,1705497040569,-500.0,0.00021917,2]
[311913064,1705497040579,-500.0,0.00021917,2]
[311913065,1705497040590,-1818.55,0.00021917,2]
[311913066,1705497040601,-380.81535745,0.00021917,2]
[311913067,1705497040611,-500.0,0.00021917,2]
[311913068,1705497040622,-500.0,0.00021917,2]
[311913069,1705497040631,-500.0,0.00021917,2]
[311913070,1705497040641,-500.0,0.00021917,2]
[311913071,1705497040650,-201.40168416,0.00021917,2]
[311913072,1705497040660,-500.0,0.00021917,2]
[311913073,1705497040668,-15685.7,0.00021917,2]
[311913074,1705497040677,-500.0,0.00021917,2]
[311913075,1705497040687,-500.0,0.00021917,2]
[311913076,1705497040697,-500.0,0.00021917,2]
[311913077,1705497040706,-1151.92,0.00021917,2]
[311913078,1705497040715,-1151.92,0.00021917,2]
[311913079,1705497040724,-1151.92,0.00021917,2]
[311913080,1705497040733,-1151.92,0.00021917,2]
[311913081,1705497040743,-1151.92,0.00021917,2]
[311913082,1705497040752,-1151.92,0.00021917,2]
[311913083,1705497040761,-570.93,0.00021917,2]
[311913084,1705497040770,-500.0,0.00021917,2]
[311913085,1705497040780,-1068.65134143,0.00021917,2]
[311913086,1705497040789,-500.0,0.00021917,2]
[311913087,1705497040798,-500.0,0.00021917,2]
[311913088,1705497040808,-500.0,0.00021917,2]
[311913089,1705497040817,-500.0,0.00021917,2]
[311913090,1705497040828,-500.0,0.00021917,2]
[311913091,1705497040837,-500.0,0.00021917,2]
[311913092,1705497040847,-500.0,0.00021917,2]
[311913093,1705497040857,-500.0,0.00021917,2]
[311913094,1705497040866,-2606.1,0.00021917,2]
[311913095,1705497040875,-500.0,0.00021917,2]
[311913096,1705497040884,-500.0,0.00021917,2]
[311913097,1705497040893,-500.0,0.00021917,2]
[311913098,1705497040902,-500.0,0.00021917,2]
[311913099,1705497040911,-500.0,0.00021917,2]
[311913100,1705497040920,-500.0,0.00021917,2]
[311913101,1705497040930,-500.0,0.00021917,2]
[311913102,1705497040940,-500.0,0.00021917,2]
[311913103,1705497040949,-660.07,0.00021917,2]
[311913104,1705497040958,-500.0,0.00021917,2]
[311913105,1705497040968,-500.0,0.00021917,2]
[311913106,1705497040978,-500.0,0.00021917,2]
[311913107,1705497040987,-550.8718415,0.00021917,2]
[311913108,1705497040996,-500.0,0.00021917,2]
[311913109,1705497041006,-789.75,0.00021917,2]
[311913110,1705497041015,-159.14815525,0.00021917,2]
[311913111,1705497041025,-500.0,0.00021917,2]
[311913112,1705497041034,-1506.2,0.00021917,2]
[311913113,1705497041044,-500.0,0.00021917,2]
[311913114,1705497041053,-257.53,0.00021917,2]
[311913115,1705497041063,-502.99980085,0.00021917,2]
[311913116,1705497041074,-500.0,0.00021917,2]
[311913117,1705497041084,-500.0,0.00021917,2]
[311913118,1705497041093,-524.76,0.00021917,2]
[311913119,1705497041103,-28351.53,0.00021917,2]
[311913120,1705497041112,-500.0,0.00021917,2]
[311913121,1705497041121,-500.0,0.00021917,2]
[311913122,1705497041131,-632.46,0.00021917,2]
[311913123,1705497041143,-500.0,0.00021917,2]
[311913124,1705497041151,-500.79749771,0.00021917,2]
[311913125,1705497041161,-500.0,0.00021917,2]
[311913126,1705497041171,-7389.85,0.00021917,2]
[311913127,1705497041181,-500.0,0.00021917,2]
[311913128,1705497041191,-6143.57,0.00021917,2]
[311913129,1705497041201,-500.0,0.00021917,2]
[311913130,1705497041210,-569.61165838,0.00021917,2]
[311913131,1705497041220,-500.0,0.00021917,2]
[311913132,1705497041232,-500.0,0.00021917,2]
[311913133,1705497041243,-500.0,0.00021917,2]
[311913134,1705497041253,-8710.37,0.00021917,2]
[311913135,1705497041262,-500.0,0.00021917,2]
[311913136,1705497041271,-500.0,0.00021917,2]
[311913137,1705497041281,-496.38117138,0.00021917,2]
[311913138,1705497041290,-500.0,0.00021917,2]
[311913139,1705497041299,-500.0,0.00021917,2]
[311913140,1705497041309,-224.4532379,0.00021917,2]
[311913141,1705497041318,-500.0,0.00021917,2]
[311913142,1705497041327,-585.96,0.00021917,2]
[311913143,1705497041336,-500.0,0.00021917,2]
[311913144,1705497041346,-500.0,0.00021917,2]
[311913145,1705497041355,-2807.27,0.00021917,2]
[311913146,1705497041364,-2823.92,0.00021917,2]
[311913147,1705497041373,-500.0,0.00021917,2]
[311913148,1705497041382,-166.666666,0.00021918,2]
[311913149,1705497041392,-153.0,0.00021918,2]
[311913150,1705497041401,-200.0,0.00021942,7]
[311913151,1705497041410,-16984.28367361,0.00021954,2]
[311913152,1705497041419,-280.299485,0.00021954,2]
[311913153,1705497041428,-280.299485,0.00021954,2]
[311913154,1705497041438,-1151.92,0.00021999,2]
[311913155,1705497041447,-293.1976279,0.00022,4]
[311913156,1705497041456,-3955.54830897,0.00022,2]
[311913157,1705497041465,-425.53656097,0.00022,2]
[311913158,1705497041474,-374.76193364,0.00022,2]
[311913159,1705497041483,-154.9690062,0.00022,2]
[311913160,1705497041492,-309.4118883,0.00022,2]
[311913161,1705497041503,-500.0,0.00022041,2]
[311913162,1705497041516,-1151.92,0.00022041,2]
[311913163,1705497041594,-1151.92,0.00022041,2]
[311913164,1705497041604,-151.0,0.00022042,2]
[311913165,1705497041612,-190.558244,0.00022042,2]
[311913166,1705497041622,-190.558244,0.00022042,2]
[311913167,1705497041631,-280.299485,0.00022042,2]
[311913168,1705497041640,-280.299485,0.00022042,2]
[311913169,1705497041649,-5000.0,0.00022042,2]
[311913170,1705497041658,-79416.74269191,0.00022042,2]
[311913171,1705497041667,-16524.93754489,0.00022042,2]
[311913172,1705497041677,-5000.0,0.00022042,2]
[311913173,1705497041687,-39118.31876048,0.00022042,2]
[311913174,1705497041696,-1196.17159553,0.00022052,2]
[311913175,1705497041707,-154.9690062,0.00022052,2]
[311913176,1705497041716,-154.9690062,0.00022052,2]
[311913177,1705497041726,-530.40124379,0.00022052,2]
[311913178,1705497041735,-1151.92,0.00022052,2]
[311913179,1705497041745,-1151.92,0.00022052,2]
[311913180,1705497041755,-1151.92,0.00022052,2]
[311913181,1705497041764,-1151.92,0.00022052,2]
[311913182,1705497041775,-151.0,0.00022053,2]
[311913183,1705497041784,-173.939081,0.00022053,2]
[311913184,1705497041793,-190.558244,0.00022053,2]
[311913185,1705497041803,-190.558244,0.00022053,2]
[311913186,1705497041813,-280.299485,0.00022053,2]
[311913187,1705497041822,-280.299485,0.00022053,2]
[311913188,1705497041832,-200.0,0.00022053,2]
[311913189,1705497041842,-870.94983521,0.00022053,2]
[311913190,1705497041851,-154.9690062,0.00022053,2]
[311913191,1705497041861,-7276.53316441,0.00022053,2]
[311913235,1705497043266,-548.69079618,0.00022042,2]
[311913370,1705497500016,1492.76161893,0.00029,30]
[311913383,1705498166837,-1619.56673978,0.00019682,2]
[311913384,1705498166873,-154.98450155,0.00019683,2]
[311913385,1705498166913,-209.43982614,0.00019683,2]
[311913386,1705498167016,-1032.01786506,0.00019683,2]
[311913387,1705498167028,-154.98450155,0.00019684,2]
[311913388,1705498167037,-432.56437317,0.00019684,2]
[311913389,1705498167050,-154.98450155,0.00019684,2]
[311913390,1705498167068,-1241.4576912,0.00019684,2]
[311913558,1705498233431,-260.63461917,0.0001967,2]
[311913559,1705498233443,-400.53090856,0.0001967,2]
[311913560,1705498233452,-246.39706185,0.0001967,2]
[311913561,1705498233461,-154.98450155,0.0001967,2]
[311913562,1705498233470,-361.16356305,0.00019671,2]
[311913563,1705498233479,-1380.87701911,0.00019672,2]
[311913564,1705498233488,-687.36165811,0.00019672,2]
[311913565,1705498233497,-2037.3106961,0.00019673,2]
[311913566,1705498233506,-36931.7299546,0.00019674,2]
[311913567,1705498233515,-488.57,0.00019674,3]
[311913568,1705498233523,-1891.78,0.00019674,3]
[311913569,1705498233532,-7996.6868672,0.00019675,2]
[311913570,1705498233541,-14987.9187453,0.00019676,2]
[311913652,1705498238516,-154.98450155,0.0001967,3]
[311913653,1705498238526,-154.98450155,0.0001967,2]
[311913654,1705498238536,-5868.82219601,0.00019676,2]
[311913655,1705498238546,-175.07495536,0.00019676,2]
[311913656,1705498238555,-162.97782864,0.00019677,2]
[311913657,1705498238565,-1991.85581733,0.00019677,2]
[311913658,1705498238574,-154.98450155,0.00019677,2]
[311913659,1705498238584,-643.80991275,0.00019677,2]
[311913660,1705498238593,-2071.696278,0.00019682,2]
[311913661,1705498238603,-155.01550155,0.00019682,2]
[311913662,1705498238612,-301.52967926,0.00019682,2]
[311913663,1705498238621,-291.56052871,0.00019682,2]
[311913664,1705498238631,-242.79443155,0.00019682,2]
[311913665,1705498238640,-526.06302176,0.00019682,2]
[311913666,1705498238650,-307.92026291,0.00019682,2]
[311913667,1705498238659,-560.72005833,0.00019682,2]
[311913668,1705498238669,-214.87288074,0.00019682,2]
[311913669,1705498238679,-245.97076083,0.00019682,2]
[311913670,1705498238690,-2015.14902606,0.00019682,2]
[311913671,1705498238801,-2101.24804165,0.00019682,2]
[311913672,1705498238810,-154.99053354,0.00019683,2]
[311913673,1705498238819,-1241.4576912,0.00019683,2]
[311913674,1705498238828,-154.98450155,0.00019683,2]
[311913675,1705498238837,-1957.35589459,0.00019683,2]
[311913676,1705498238846,-19683.9294639,0.00019683,2]
[311913677,1705498238855,-150.0,0.00019942,2]
[311913678,1705498238866,-1576.49,0.0001999,3]
[311913679,1705498238876,-849.41831623,0.0002,2]
[311913680,1705498238885,-1196.71363385,0.0002,2]
[311913681,1705498238895,-1265.41823027,0.0002,2]
[311913682,1705498238904,-186.490029,0.00020933,2]
[311913683,1705498238914,-22351.2075465,0.00020933,2]
[311913684,1705498238923,-1815.68321298,0.00021,2]
[311913685,1705498238933,-200.0,0.00021643,7]
[311913686,1705498238943,-153.0,0.000218,2]
[311913687,1705498238952,-153.0,0.000218,2]
[311913688,1705498238961,-153.0,0.000218,2]
[311913689,1705498238970,-153.0,0.000218,2]
[311913690,1705498238979,-393.3506667,0.000218,2]
[311913691,1705498238988,-155.44861642,0.00021805,2]
[311913692,1705498238998,-861.08586622,0.0002191,2]
[311913693,1705498239008,-155.43565861,0.0002191,2]
[311913694,1705498239017,-521.18978843,0.0002191,2]
[311913695,1705498239027,-874.96050946,0.0002191,2]
[311913696,1705498239036,-224.79143074,0.0002191,2]
[311913697,1705498239045,-160.91500168,0.00021911,2]
[311913698,1705498239055,-322.69466175,0.00021911,2]
[311913699,1705498239064,-237.84642437,0.00021912,2]
[311913700,1705498239073,-491.10761571,0.00021912,2]
[311913701,1705498239083,-239.23954931,0.00021912,2]
[311913702,1705498239092,-2823.05455903,0.00021912,2]
[311913703,1705498239101,-193.28282234,0.00021912,2]
[311913704,1705498239111,-155.88506777,0.00021912,2]
[311913705,1705498239120,-164.20437839,0.00021912,2]
[311913706,1705498239129,-155.26338395,0.00021912,2]
[311913707,1705498239138,-155.11937889,0.00021912,2]
[311913708,1705498239147,-345.7625873,0.00021912,2]
[311913709,1705498239157,-1735.50272763,0.00021912,2]
[311913710,1705498239166,-1580.16851554,0.00021912,2]
[311913711,1705498239175,-548.14196158,0.00021912,2]
[311913712,1705498239185,-1288.64001662,0.00021912,2]
[311913713,1705498239196,-12748.42528674,0.00021912,2]
[311913714,1705498239205,-263.21986175,0.00021912,7]
[311913715,1705498239215,-213.13739698,0.00021912,2]
[311913716,1705498239224,-294.87990361,0.00021912,2]
[311913717,1705498239233,-688.3625771,0.00021912,2]
[311913718,1705498239243,-2520.85498973,0.00021912,2]
[311913719,1705498239253,-154.98450155,0.00021912,2]
[311913720,1705498239262,-253.62625705,0.00021913,2]
[311913721,1705498239272,-328.98598783,0.00021913,2]
[311913722,1705498239281,-6124.12577825,0.00021913,2]
[311913723,1705498239290,-191.16884209,0.00021913,2]
[311913724,1705498239300,-677.30340506,0.00021913,2]
[311913725,1705498239309,-209.21,0.00021913,7]
[311913726,1705498239318,-2700.20522708,0.00021913,2]
[311913727,1705498239328,-2428.97769505,0.00021914,2]
[311913728,1705498239338,-62373.84640852,0.00021914,2]
[311913729,1705498239347,-155.0,0.00021915,2]
[311913730,1705498239357,-156.10545261,0.00021915,2]
[311913732,1705498239366,-475.03025336,0.00021915,5]
[311913734,1705498239376,-156.08728379,0.00021915,2]
[311913735,1705498239385,-1588.5756211,0.00021915,2]
[311913737,1705498239395,-935.82213156,0.00021915,2]
[311913739,1705498239404,-184.74016345,0.00021915,2]
[311913740,1705498239413,-165.33584061,0.00021915,2]
[311913742,1705498239424,-166.65370388,0.00021915,2]
[311913744,1705498239434,-1694.70771461,0.00021915,2]
[311913746,1705498239444,-679.24429502,0.00021915,2]
[311913748,1705498239453,-18718.26996216,0.00021915,2]
[311913750,1705498239463,-261.85697331,0.00021915,2]
[311913752,1705498239472,-156.49556393,0.00021916,2]
[311913754,1705498239482,-280.299485,0.00021917,2]
[311913756,1705498239491,-280.299485,0.00021917,2]
[311913757,1705498239500,-500.0,0.00021917,2]
[311913758,1705498239509,-500.0,0.00021917,2]
[311913759,1705498239518,-500.0,0.00021917,2]
[311913760,1705498239527,-500.0,0.00021917,2]
[311913761,1705498239536,-500.0,0.00021917,2]
[311913762,1705498239545,-500.0,0.00021917,2]
[311913763,1705498239555,-500.0,0.00021917,2]
[311913764,1705498239564,-488.04280479,0.00021917,2]
[311913765,1705498239573,-500.0,0.00021917,2]
[311913766,1705498239582,-575.28227044,0.00021917,2]